[Event "Niedersachsen-ch B 2024"]
[Site "Verden Aller"]
[Date "2024.01.05"]
[Round "3.22"]
[White "Rose, Simeon"]
[Black "Nguyen, Laurentius"]
[Result "0-1"]
[ECO "C50"]
[WhiteElo "1368"]
[BlackElo "1546"]
[Annotator "NA RC"]
[PlyCount "128"]
[EventDate "2024.01.01"]
[EventType "swiss"]
[EventCountry "GER"]
[SourceTitle "playchess.com"]
[Source "ChessBase"]
[SourceQuality "1"]
[TimeControl "40/5400+30:1800+30"]

1. e4 {[%emt 0:00:02]} e5 {[%emt 0:00:03]} 2. Nf3 {[%emt 0:00:17]} Nc6 {[%emt 0:01:27]} 3. Bc4 {[%emt 0:00:08]} Bc5 {[%emt 0:00:09]} 4. d3 {[%emt 0:00:08]} Nf6 {[%emt 0:00:10]} 5. Nc3 {[%emt 0:00:09]} h6 {[%emt 0:00:05]} 6. Be3 {[%emt 0:00:05]} d6 {[%emt 0:00:13]} 7. Bxc5 {[%emt 0:00:18]} dxc5 {[%emt 0:00:04]} 8. Bb5 {[%emt 0:00:56]} Qd6 {[%emt 0:03:28]} 9. Bxc6+ {[%emt 0:02:39]} bxc6 {[%emt 0:00:11]} 10. h3 {[%emt 0:06:50]} O-O {[%emt 0:02:45]} 11. O-O {[%emt 0:00:10]} Re8 {[%emt 0:05:03]} 12. Nd2 {[%emt 0:06:43]} Nh7 {[%emt 0:01:17]} 13. Nc4 {[%emt 0:04:09]} Qg6 {[%emt 0:01:10]} 14. Kh2 {[%emt 0:06:09]} Nf6 {[%emt 0:02:00]} 15. Ne2 {[%emt 0:05:49]} Nh5 {[%emt 0:02:08]} 16. Ng3 {[%emt 0:06:56]} Nf4 {[%emt 0:01:42]} 17. Qf3 {[%emt 0:02:08]} Qe6 {[%emt 0:14:29]} 18. Nf5 {[%emt 0:06:33]} Qf6 {[%emt 0:05:21]} 19. Nce3 {[%emt 0:01:28]} Bxf5 {[%emt 0:03:38]} 20. Nxf5 {[%emt 0:01:01]} Ne6 {[%emt 0:01:41]} 21. Qg4 {[%emt 0:07:55]} Nd4 {[%emt 0:03:48]} 22. c3 {[%emt 0:12:20]} Nxf5 {[%emt 0:01:06]} 23. Qxf5 {[%emt 0:01:09]} Qxf5 {[%emt 0:02:07]} 24. exf5 {[%emt 0:00:03]} Rad8 {[%emt 0:01:57]} 25. Rad1 {[%emt 0:01:59]} Rd5 {[%emt 0:06:33]} 26. Rfe1 {[%emt 0:02:51]} f6 {[%emt 0:06:01]} 27. g4 {[%emt 0:06:20]} Red8 {[%emt 0:04:47]} 28. Re3 {[%emt 0:05:15]} c4 {[%emt 0:01:37]} 29. Kg3 {[%emt 0:04:54]} cxd3 {[%emt 0:07:53]} 30. Kf3 {[%emt 0:02:33]} c5 {[%emt 0:01:21]} 31. c4 {[%emt 0:01:37]} R5d6 {[%emt 0:14:12]} 32. b3 {[%emt 0:02:03]} Re8 {[%emt 0:03:33]} 33. Rd2 {[%emt 0:01:35]} Kf7 {[%emt 0:01:29]} 34. Rd1 {[%emt 0:02:02]} Re7 {[%emt 0:01:30]} 35. Ke4 {[%emt 0:01:03]} Rd4+ {[%emt 0:00:09]} 36. Kf3 {[%emt 0:00:01]} e4+ {[%emt 0:01:31]} 37. Kf4 {[%emt 0:00:57]} Ke8 {[%emt 0:00:37]} 38. f3 {[%emt 0:00:29]} exf3+ {[%emt 0:00:25]} 39. Kxf3 {[%emt 0:00:05]} d2 {[%emt 0:01:36]} 40. Rxe7+ {[%emt 0:00:34]} Kxe7 {[%emt 0:00:01]} 41. Ke3 {[%emt 0:30:17]} Kd6 {[%emt 0:03:23]} 42. Rxd2 {[%emt 0:00:00]} Rxd2 {[%emt 0:02:21]} 43. Kxd2 {[%emt 0:00:00]} Ke5 {[%emt 0:00:44]} 44. Ke3 {[%emt 0:00:00]} h5 {[%emt 0:06:41]} 45. Kf3 {[%emt 0:00:00]} hxg4+ {[%emt 0:08:38]} 46. hxg4 {[%emt 0:00:00]} Kd4 {[%emt 0:01:51]} 47. g5 {[%emt 0:00:00]} Ke5 {[%emt 0:02:00]} 48. Kg4 {[%emt 0:02:20]} Ke4 {[%emt 0:00:48]} 49. gxf6 {[%emt 0:03:18]} gxf6 {[%emt 0:00:01]} 50. Kg3 {[%emt 0:00:25]} Kxf5 {[%emt 0:00:47]} 51. Kf3 {[%emt 0:00:04]} Ke5 {[%emt 0:00:43]} 52. Ke3 {[%emt 0:00:08]} f5 {[%emt 0:00:48]} 53. Kf3 {[%emt 0:00:43]} f4 {[%emt 0:00:25]} 54. a4 {[%emt 0:01:52]} a5 {[%emt 0:00:13]} 55. Kf2 {[%emt 0:00:00]} Ke4 {[%emt 0:00:10]} 56. Ke2 {[%emt 0:00:00]} f3+ {[%emt 0:00:19]} 57. Kf2 {[%emt 0:00:00]} Kf4 {[%emt 0:00:08]} 58. Kf1 {[%emt 0:00:00]} Ke3 {[%emt 0:00:46]} 59. Ke1 {[%emt 0:00:00]} f2+ {[%emt 0:00:25]} 60. Kf1 {[%emt 0:00:00]} Kf3 {[%emt 0:00:05]} 61. b4 {[%emt 0:00:00]} axb4 {[%emt 0:00:22]} 62. a5 {[%emt 0:00:03]} b3 {[%emt 0:00:03]} 63. a6 {[%emt 0:00:05]} b2 {[%emt 0:00:03]} 64. a7 {[%emt 0:00:04]} b1=R# {[%emt 0:00:07]} 0-1

[Event "Niedersachsen-ch B 2024"]
[Site "Verden Aller"]
[Date "2024.01.05"]
[Round "3.24"]
[White "Fize, Aleksandrs"]
[Black "Eitel, Luc"]
[Result "*"]
[ECO "D00"]
[WhiteElo "1307"]
[BlackElo "1535"]
[Annotator "NA RC"]
[PlyCount "61"]
[EventDate "2024.01.01"]
[EventType "swiss"]
[EventCountry "GER"]
[SourceTitle "playchess.com"]
[Source "ChessBase"]
[SourceQuality "1"]
[TimeControl "40/5400+30:1800+30"]

1. d4 {[%emt 0:00:02]} d5 {[%emt 0:01:21]} 2. Nc3 {[%emt 0:00:09]} Nf6 {[%emt 0:00:34]} 3. Bf4 {[%emt 0:00:07]} a6 {[%emt 0:00:18]} 4. e3 {[%emt 0:00:12]} c5 {[%emt 0:00:13]} 5. Nf3 {[%emt 0:03:38]} e6 {[%emt 0:00:53]} 6. dxc5 {[%emt 0:00:10]} Bxc5 {[%emt 0:01:23]} 7. Bd3 {[%emt 0:00:06]} Nc6 {[%emt 0:02:15]} 8. O-O {[%emt 0:00:11]} Bd6 {[%emt 0:02:10]} 9. Bxd6 {[%emt 0:01:47]} Qxd6 {[%emt 0:00:28]} 10. e4 {[%emt 0:00:06]} d4 {[%emt 0:05:44]} 11. Ne2 {[%emt 0:00:06]} O-O {[%emt 0:00:20]} 12. e5 {[%emt 0:03:25]} Nxe5 {[%emt 0:01:02]} 13. Nexd4 {[%emt 0:00:06]} Nxd3 {[%emt 0:03:30]} 14. cxd3 {[%emt 1:27:25]} b5 {[%emt 0:04:29]} 15. Qe2 {[%emt 0:01:32]} Bb7 {[%emt 0:03:28]} 16. Rac1 {[%emt 0:01:52]} Rac8 {[%emt 0:00:40]} 17. Nb3 {[%emt 0:02:42]} Bd5 {[%emt 0:02:33]} 18. Nbd2 {[%emt 0:00:52]} h6 {[%emt 0:02:25]} 19. b3 {[%emt 0:00:18]} Qf4 {[%emt 1:06:14]} 20. Qe3 {[%emt 0:07:51]} Qxe3 {[%emt 0:09:18]} 21. fxe3 {[%emt 1:09:52]} Bxf3 {[%emt 0:01:08]} 22. Nxf3 {[%emt 0:01:26]} Nd5 {[%emt 0:00:07]} 23. Kf2 {[%emt 0:01:12]} Nb4 {[%emt 0:00:17]} 24. Ke2 {[%emt 0:04:37]} Nxa2 {[%emt 0:01:05]} 25. Ra1 {[%emt 0:01:56]} Rc2+ {[%emt 0:01:43]} 26. Nd2 {[%emt 0:00:20]} Rfc8 {[%emt 0:01:17]} 27. Kd1 {[%emt 0:02:00]} Rb2 {[%emt 0:12:37]} 28. g3 {[%emt 0:01:29]} Rcc2 {[%emt 0:02:32]} 29. Nf3 {[%emt 0:01:00]} Nc3+ {[%emt 0:00:22]} 30. Ke1 {[%emt 0:01:19]} Na2 {[%emt 0:38:12]} 31. Kd1 {[%emt 0:57:53]} *

[Event "Niedersachsen-ch B 2024"]
[Site "Verden Aller"]
[Date "2024.01.05"]
[Round "3.28"]
[White "Tenninger, Joerg"]
[Black "Schumacher, Klaus"]
[Result "0-1"]
[ECO "D20"]
[WhiteElo "1508"]
[BlackElo "1724"]
[Annotator "NA RC"]
[PlyCount "34"]
[EventDate "2024.01.01"]
[EventType "swiss"]
[EventCountry "GER"]
[SourceTitle "playchess.com"]
[Source "ChessBase"]
[SourceQuality "1"]
[TimeControl "40/5400+30:1800+30"]

1. d4 {[%emt 0:00:03]} d5 {[%emt 0:00:06]} 2. c4 {[%emt 0:00:05]} dxc4 {[%emt 0:00:06]} 3. e3 {[%emt 0:00:07]} e5 {[%emt 0:00:19]} 4. Nf3 {[%emt 0:05:08]} exd4 {[%emt 0:02:12]} 5. Nxd4 {[%emt 0:00:10]} Bb4+ {[%emt 0:01:30]} 6. Nc3 {[%emt 0:00:31]} c5 {[%emt 0:03:19]} 7. Ndb5 {[%emt 0:12:48]} Bxc3+ {[%emt 0:02:15]} 8. Nxc3 {[%emt 0:00:57]} Qxd1+ {[%emt 0:00:10]} 9. Kxd1 {[%emt 0:00:06]} Be6 {[%emt 0:01:13]} 10. Ne4 {[%emt 0:02:15]} Nd7 {[%emt 0:05:47]} 11. Nd6+ {[%emt 0:01:50]} Ke7 {[%emt 0:00:13]} 12. Nxc4 {[%emt 0:00:09]} Ngf6 {[%emt 0:01:18]} 13. b3 {[%emt 0:02:35]} Rhd8 {[%emt 0:01:36]} 14. Ba3 {[%emt 0:08:36]} Bxc4 {[%emt 0:03:41]} 15. Bxc4 {[%emt 0:00:15]} Nb6+ {[%emt 0:00:11]} 16. Ke2 {[%emt 0:01:00]} Nxc4 {[%emt 0:00:14]} 17. Bxc5+ {[%emt 0:00:42]} Nd6 {[%emt 0:00:09]} 0-1

[Event "Niedersachsen-ch B 2024"]
[Site "Verden Aller"]
[Date "2024.01.05"]
[Round "3.29"]
[White "Margaryan, Venera"]
[Black "Nordhorn, Horst"]
[Result "*"]
[ECO "D35"]
[WhiteElo "1473"]
[BlackElo "1696"]
[Annotator "NA RC"]
[PlyCount "62"]
[EventDate "2024.01.01"]
[EventType "swiss"]
[EventCountry "GER"]
[SourceTitle "playchess.com"]
[Source "ChessBase"]
[SourceQuality "1"]
[TimeControl "40/5400+30:1800+30"]

1. d4 {[%emt 0:00:04]} d5 {[%emt 0:00:36]} 2. c4 {[%emt 0:00:06]} e6 {[%emt 0:00:04]} 3. Nc3 {[%emt 0:00:10]} c6 {[%emt 0:00:05]} 4. cxd5 {[%emt 0:00:33]} exd5 {[%emt 0:00:07]} 5. Nf3 {[%emt 0:00:15]} Bf5 {[%emt 0:00:27]} 6. Bf4 {[%emt 1:32:22]} h6 {[%emt 0:00:49]} 7. e3 {[%emt 0:01:23]} Bd6 {[%emt 1:31:52]} 8. Bxd6 {[%emt 0:00:26]} Qxd6 {[%emt 0:00:09]} 9. Be2 {[%emt 0:01:05]} Nd7 {[%emt 0:00:19]} 10. O-O {[%emt 0:00:38]} Ngf6 {[%emt 0:00:33]} 11. a3 {[%emt 0:02:30]} O-O {[%emt 0:01:41]} 12. b4 {[%emt 0:00:38]} b5 {[%emt 0:00:19]} 13. Rc1 {[%emt 0:06:55]} Nb6 {[%emt 0:03:45]} 14. Nd2 {[%emt 0:12:58]} Rfe8 {[%emt 0:01:07]} 15. Re1 {[%emt 0:04:34]} Re7 {[%emt 0:00:06]} 16. h3 {[%emt 0:09:01]} a5 {[%emt 0:05:07]} 17. Qb3 {[%emt 0:04:01]} axb4 {[%emt 1:18:23]} 18. Qxb4 {[%emt 0:01:43]} Qxb4 {[%emt 0:00:19]} 19. axb4 {[%emt 0:00:15]} Nc4 {[%emt 0:00:25]} 20. Nxc4 {[%emt 0:00:57]} bxc4 {[%emt 0:00:12]} 21. b5 {[%emt 0:01:18]} cxb5 {[%emt 0:00:12]} 22. Nxb5 {[%emt 0:00:50]} Ra6 {[%emt 0:04:11]} 23. Nc3 {[%emt 0:01:30]} Ra5 {[%emt 0:03:13]} 24. Bf1 {[%emt 0:02:37]} h5 {[%emt 0:01:19]} 25. f3 {[%emt 0:01:41]} g5 {[%emt 1:10:02]} 26. g4 {[%emt 0:08:09]} Bg6 {[%emt 0:02:15]} 27. Bg2 {[%emt 0:03:08]} hxg4 {[%emt 0:00:28]} 28. hxg4 {[%emt 0:00:45]} Bd3 {[%emt 0:00:40]} 29. Bf1 {[%emt 0:03:26]} Bxf1 {[%emt 0:00:08]} 30. Kxf1 {[%emt 0:00:17]} Kg7 {[%emt 0:01:04]} 31. Kg2 {[%emt 0:00:39]} Re6 {[%emt 0:02:39]} *

[Event "Niedersachsen-ch B 2024"]
[Site "Verden Aller"]
[Date "2024.01.05"]
[Round "3.30"]
[White "Steven, Matthias"]
[Black "Warns, Harald"]
[Result "*"]
[ECO "B02"]
[WhiteElo "1284"]
[BlackElo "1683"]
[Annotator "NA RC"]
[PlyCount "32"]
[EventDate "2024.01.01"]
[EventType "swiss"]
[EventCountry "GER"]
[SourceTitle "playchess.com"]
[Source "ChessBase"]
[SourceQuality "1"]
[TimeControl "40/5400+30:1800+30"]

1. e4 {[%emt 0:00:01]} Nf6 {[%emt 0:00:09]} 2. Nc3 {[%emt 0:01:27]} d5 {[%emt 0:00:03]} 3. exd5 {[%emt 0:02:59]} Nxd5 {[%emt 0:00:02]} 4. Bc4 {[%emt 0:04:44]} e6 {[%emt 1:32:16]} 5. d4 {[%emt 1:23:49]} Bb4 {[%emt 0:05:18]} 6. Nge2 {[%emt 1:18:59]} c6 {[%emt 0:06:59]} 7. O-O {[%emt 1:16:36]} Nd7 {[%emt 0:05:40]} 8. Qd3 {[%emt 0:08:17]} Nxc3 {[%emt 0:08:09]} 9. bxc3 {[%emt 1:05:37]} Bd6 {[%emt 0:00:15]} 10. Bb3 {[%emt 0:06:47]} Qc7 {[%emt 0:02:54]} 11. h3 {[%emt 0:03:42]} b6 {[%emt 0:03:31]} 12. c4 {[%emt 0:54:11]} Ba6 {[%emt 0:02:25]} 13. Qf3 {[%emt 0:03:29]} Nf6 {[%emt 0:02:00]} 14. Rd1 {[%emt 0:08:00]} Bb7 {[%emt 0:04:15]} 15. Bf4 {[%emt 0:07:16]} Bxf4 {[%emt 0:02:09]} 16. Nxf4 {[%emt 0:01:40]} O-O {[%emt 0:01:28]} *

[Event "Niedersachsen-ch B 2024"]
[Site "Verden Aller"]
[Date "2024.01.05"]
[Round "3.32"]
[White "Direk, Oguzhan"]
[Black "Sauer, Ben"]
[Result "1-0"]
[ECO "D00"]
[WhiteElo "1657"]
[BlackElo "1427"]
[Annotator "NA RC"]
[PlyCount "53"]
[EventDate "2024.01.01"]
[EventType "swiss"]
[EventCountry "GER"]
[SourceTitle "playchess.com"]
[Source "ChessBase"]
[SourceQuality "1"]
[TimeControl "40/5400+30:1800+30"]

1. d4 {[%emt 0:00:02]} d5 {[%emt 0:00:22]} 2. Nc3 {[%emt 0:00:06]} Nf6 {[%emt 0:00:12]} 3. Bf4 {[%emt 0:00:09]} c5 {[%emt 0:00:38]} 4. Nf3 {[%emt 0:02:43]} a6 {[%emt 0:01:01]} 5. dxc5 {[%emt 0:02:29]} e6 {[%emt 0:01:59]} 6. b4 {[%emt 0:01:41]} Nc6 {[%emt 1:29:18]} 7. a3 {[%emt 0:02:33]} Bd7 {[%emt 0:00:00]} 8. Na4 {[%emt 0:05:26]} Ne7 {[%emt 0:00:00]} 9. Nb6 {[%emt 0:00:57]} Ra7 {[%emt 0:00:00]} 10. h3 {[%emt 0:02:11]} g6 {[%emt 0:00:00]} 11. e3 {[%emt 0:09:13]} Bg7 {[%emt 0:00:00]} 12. Ne5 {[%emt 0:03:50]} Nc6 {[%emt 0:03:00]} 13. c4 {[%emt 0:08:06]} Nxe5 {[%emt 0:00:00]} 14. Bxe5 {[%emt 0:01:43]} Bc6 {[%emt 0:00:00]} 15. b5 {[%emt 0:03:48]} axb5 {[%emt 0:00:00]} 16. cxb5 {[%emt 0:00:02]} Bd7 {[%emt 0:00:00]} 17. Qd4 {[%emt 0:00:18]} Ra5 {[%emt 0:00:00]} 18. Nxd7 {[%emt 0:01:53]} Kxd7 {[%emt 0:00:00]} 19. c6+ {[%emt 0:03:18]} Kc8 {[%emt 0:00:00]} 20. Rc1 {[%emt 0:02:43]} Ra8 {[%emt 0:00:00]} 21. cxb7+ {[%emt 0:01:04]} Kxb7 {[%emt 0:00:00]} 22. Rc7+ {[%emt 0:00:30]} Qxc7 {[%emt 0:00:00]} 23. Bxc7 {[%emt 0:00:08]} Kxc7 {[%emt 0:00:00]} 24. Qc5+ {[%emt 0:00:13]} Kd7 {[%emt 0:00:00]} 25. b6 {[%emt 0:00:15]} Rhb8 {[%emt 0:00:00]} 26. Bb5+ {[%emt 0:00:18]} Kd8 {[%emt 0:00:00]} 27. Qc7# {[%emt 0:00:36]} 1-0

[Event "Niedersachsen-ch B 2024"]
[Site "Verden Aller"]
[Date "2024.01.05"]
[Round "3.33"]
[White "Wildner, Jens Martin"]
[Black "Rinke, Alexander"]
[Result "1/2-1/2"]
[ECO "D35"]
[WhiteElo "1634"]
[BlackElo "1296"]
[Annotator "NA RC"]
[PlyCount "111"]
[EventDate "2024.01.01"]
[EventType "swiss"]
[EventCountry "GER"]
[SourceTitle "playchess.com"]
[Source "ChessBase"]
[SourceQuality "1"]
[TimeControl "40/5400+30:1800+30"]

1. d4 {[%emt 0:00:01]} d5 {[%emt 0:00:09]} 2. c4 {[%emt 0:00:05]} e6 {[%emt 0:00:04]} 3. Nc3 {[%emt 0:00:05]} Nf6 {[%emt 0:00:11]} 4. cxd5 {[%emt 0:00:04]} exd5 {[%emt 0:00:05]} 5. Bg5 {[%emt 0:00:06]} Be6 {[%emt 0:00:16]} 6. e3 {[%emt 0:00:23]} c6 {[%emt 0:01:27]} 7. Bd3 {[%emt 0:01:35]} Bd6 {[%emt 0:00:45]} 8. Qc2 {[%emt 0:02:04]} h6 {[%emt 0:01:55]} 9. Bh4 {[%emt 0:00:28]} O-O {[%emt 0:06:23]} 10. Nge2 {[%emt 0:06:21]} Nbd7 {[%emt 0:07:34]} 11. O-O {[%emt 0:00:14]} Qc7 {[%emt 0:01:04]} 12. Bg3 {[%emt 0:00:45]} Bxg3 {[%emt 0:04:16]} 13. Nxg3 {[%emt 0:00:44]} Ne8 {[%emt 0:10:43]} 14. f3 {[%emt 0:03:10]} Ndf6 {[%emt 0:13:05]} 15. Rad1 {[%emt 0:09:33]} Qb6 {[%emt 0:04:04]} 16. Kh1 {[%emt 0:04:17]} Nc7 {[%emt 0:02:54]} 17. Na4 {[%emt 0:17:51]} Qb4 {[%emt 0:01:31]} 18. a3 {[%emt 0:00:32]} Qd6 {[%emt 0:01:33]} 19. Bf5 {[%emt 0:12:36]} Nb5 {[%emt 0:24:46]} 20. Nc5 {[%emt 0:07:40]} b6 {[%emt 0:02:49]} 21. Nb3 {[%emt 0:00:11]} Bxf5 {[%emt 0:01:34]} 22. Nxf5 {[%emt 0:00:14]} Qe6 {[%emt 0:00:06]} 23. Rfe1 {[%emt 0:08:01]} Rac8 {[%emt 0:05:48]} 24. Qd3 {[%emt 0:01:32]} Rfe8 {[%emt 0:03:07]} 25. a4 {[%emt 0:07:16]} Nd6 {[%emt 0:06:51]} 26. Nxd6 {[%emt 0:02:07]} Qxd6 {[%emt 0:00:00]} 27. a5 {[%emt 0:06:01]} bxa5 {[%emt 0:00:00]} 28. Nc5 {[%emt 0:00:54]} Nd7 {[%emt 0:00:00]} 29. Nxd7 {[%emt 0:00:55]} Qxd7 {[%emt 0:00:00]} 30. Qa3 {[%emt 0:00:08]} Qc7 {[%emt 0:00:13]} 31. Rc1 {[%emt 0:00:45]} Rb8 {[%emt 0:01:02]} 32. Rc5 {[%emt 0:00:25]} Rb5 {[%emt 0:00:00]} 33. Rec1 {[%emt 0:00:38]} Rxc5 {[%emt 0:01:29]} 34. Rxc5 {[%emt 0:09:49]} Qe7 {[%emt 0:00:18]} 35. Rc3 {[%emt 0:00:00]} Qxa3 {[%emt 0:00:23]} 36. Rxa3 {[%emt 0:00:00]} f5 {[%emt 0:00:31]} 37. Kg1 {[%emt 0:00:00]} Kf7 {[%emt 0:00:21]} 38. f4 {[%emt 0:00:00]} Kf6 {[%emt 0:00:32]} 39. Kf2 {[%emt 0:00:04]} Rb8 {[%emt 0:00:08]} 40. Rxa5 {[%emt 0:00:37]} Rxb2+ {[%emt 0:00:08]} 41. Kf3 {[%emt 0:30:06]} Rb7 {[%emt 0:31:02]} 42. Ra6 {[%emt 0:00:14]} Rc7 {[%emt 0:00:00]} 43. h3 {[%emt 0:00:00]} g6 {[%emt 0:00:00]} 44. Ra2 {[%emt 0:00:00]} Ke6 {[%emt 0:00:00]} 45. g4 {[%emt 0:00:00]} Rb7 {[%emt 0:00:00]} 46. gxf5+ {[%emt 0:00:00]} gxf5 {[%emt 0:00:00]} 47. Rg2 {[%emt 0:00:00]} Kf6 {[%emt 0:00:00]} 48. Rg8 {[%emt 0:00:00]} Kf7 {[%emt 0:00:00]} 49. Rh8 {[%emt 0:00:00]} Kg7 {[%emt 0:00:00]} 50. Rc8 {[%emt 0:00:00]} a5 {[%emt 0:00:00]} 51. Rxc6 {[%emt 0:00:00]} Ra7 {[%emt 0:00:00]} 52. Rc3 {[%emt 0:00:00]} a4 {[%emt 0:00:00]} 53. Ra3 {[%emt 0:00:00]} Kf6 {[%emt 0:00:00]} 54. h4 {[%emt 0:00:03]} Kg6 {[%emt 0:00:00]} 55. Ra2 {[%emt 0:00:26]} a3 {[%emt 0:00:00]} 56. Kg3 {[%emt 0:00:40]} 1/2-1/2

[Event "Niedersachsen-ch B 2024"]
[Site "Verden Aller"]
[Date "2024.01.05"]
[Round "3.35"]
[White "Knorr, Frank"]
[Black "Heckl, Philipp"]
[Result "1-0"]
[ECO "A23"]
[WhiteElo "1411"]
[BlackElo "1580"]
[Annotator "NA RC"]
[PlyCount "96"]
[EventDate "2024.01.01"]
[EventType "swiss"]
[EventCountry "GER"]
[SourceTitle "playchess.com"]
[Source "ChessBase"]
[SourceQuality "1"]
[TimeControl "40/5400+30:1800+30"]

1. c4 {[%emt 0:00:05]} e5 {[%emt 0:07:08]} 2. Nc3 {[%emt 0:00:06]} Nf6 {[%emt 0:02:19]} 3. g3 {[%emt 0:00:08]} Bc5 {[%emt 0:04:18]} 4. Bg2 {[%emt 0:00:13]} O-O {[%emt 0:00:32]} 5. e3 {[%emt 0:00:04]} c6 {[%emt 0:03:40]} 6. Nge2 {[%emt 0:00:20]} d6 {[%emt 0:01:41]} 7. d4 {[%emt 0:00:10]} exd4 {[%emt 0:00:55]} 8. exd4 {[%emt 0:00:08]} Bb4 {[%emt 0:00:12]} 9. O-O {[%emt 0:00:17]} Bf5 {[%emt 0:00:57]} 10. a3 {[%emt 0:02:47]} Bxc3 {[%emt 0:01:22]} 11. Nxc3 {[%emt 0:00:18]} a5 {[%emt 0:03:53]} 12. Qb3 {[%emt 0:02:41]} Qc7 {[%emt 0:06:07]} 13. Bg5 {[%emt 0:02:15]} Nbd7 {[%emt 0:01:21]} 14. Bf4 {[%emt 0:01:43]} Nh5 {[%emt 0:00:15]} 15. Be3 {[%emt 0:02:39]} Nhf6 {[%emt 0:06:54]} 16. Rfe1 {[%emt 0:05:07]} Rfe8 {[%emt 0:00:12]} 17. Ne2 {[%emt 0:03:08]} h6 {[%emt 0:08:17]} 18. Nf4 {[%emt 0:00:20]} Re7 {[%emt 0:06:10]} 19. Nd3 {[%emt 0:02:13]} Rae8 {[%emt 0:00:30]} 20. Qc3 {[%emt 0:04:01]} Ne4 {[%emt 0:04:17]} 21. Bxe4 {[%emt 0:05:20]} Bxe4 {[%emt 0:00:16]} 22. c5 {[%emt 0:02:47]} Nf6 {[%emt 0:08:52]} 23. Bf4 {[%emt 0:08:24]} Qd7 {[%emt 0:01:05]} 24. Bxd6 {[%emt 0:02:09]} Nd5 {[%emt 0:01:05]} 25. Qd2 {[%emt 0:00:15]} Qf5 {[%emt 0:02:34]} 26. Bxe7 {[%emt 0:21:27]} Rxe7 {[%emt 0:03:10]} 27. Nf4 {[%emt 0:01:04]} Qg4 {[%emt 0:01:14]} 28. Nxd5 {[%emt 0:05:06]} Bxd5 {[%emt 0:03:24]} 29. Qf4 {[%emt 0:08:03]} Qh3 {[%emt 0:00:43]} 30. f3 {[%emt 0:01:08]} Qd7 {[%emt 0:00:38]} 31. Rxe7 {[%emt 0:02:25]} Qxe7 {[%emt 0:00:12]} 32. Kf2 {[%emt 0:00:17]} Qd7 {[%emt 0:01:27]} 33. Re1 {[%emt 0:01:48]} a4 {[%emt 0:05:11]} 34. Kg2 {[%emt 0:04:40]} Be6 {[%emt 0:00:32]} 35. h4 {[%emt 0:01:30]} Qd5 {[%emt 0:04:26]} 36. Re2 {[%emt 0:05:32]} Qb3 {[%emt 0:01:27]} 37. Qe3 {[%emt 0:03:46]} Qd1 {[%emt 0:01:58]} 38. Qd2 {[%emt 0:01:24]} Qb1 {[%emt 0:00:24]} 39. Qc2 {[%emt 0:00:26]} Qa2 {[%emt 0:01:37]} 40. Qxa4 {[%emt 0:00:12]} Bd5 {[%emt 0:05:30]} 41. Qc2 {[%emt 0:30:49]} Be6 {[%emt 0:04:16]} 42. Re3 {[%emt 0:00:00]} Qd5 {[%emt 0:03:29]} 43. b4 {[%emt 0:00:00]} Qxd4 {[%emt 0:00:34]} 44. Rd3 {[%emt 0:00:00]} Qf6 {[%emt 0:00:53]} 45. Rd6 {[%emt 0:00:00]} Qe7 {[%emt 0:03:01]} 46. Qd3 {[%emt 0:00:00]} g6 {[%emt 0:03:17]} 47. Rd8+ {[%emt 0:00:00]} Kg7 {[%emt 0:01:08]} 48. Qd6 {[%emt 0:00:00]} Qxd6 {[%emt 0:01:33]} 1-0

[Event "Niedersachsen-ch B 2024"]
[Site "Verden Aller"]
[Date "2024.01.05"]
[Round "3.36"]
[White "Middelberg, Simon"]
[Black "Stockburger, Alexander"]
[Result "*"]
[ECO "B18"]
[WhiteElo "1401"]
[BlackElo "1573"]
[Annotator "NA RC"]
[PlyCount "39"]
[EventDate "2024.01.01"]
[EventType "swiss"]
[EventCountry "GER"]
[SourceTitle "playchess.com"]
[Source "ChessBase"]
[SourceQuality "1"]
[TimeControl "40/5400+30:1800+30"]

1. e4 {[%emt 0:00:02]} c6 {[%emt 0:00:13]} 2. d4 {[%emt 0:00:06]} d5 {[%emt 0:00:18]} 3. Nc3 {[%emt 0:00:04]} dxe4 {[%emt 0:00:24]} 4. Nxe4 {[%emt 0:00:08]} Bf5 {[%emt 0:00:12]} 5. Ng3 {[%emt 0:00:05]} Bg6 {[%emt 0:00:11]} 6. h4 {[%emt 0:00:03]} h5 {[%emt 0:00:23]} 7. Nf3 {[%emt 0:01:19]} Nd7 {[%emt 0:01:26]} 8. Bf4 {[%emt 0:09:56]} Ngf6 {[%emt 0:02:53]} 9. Ne5 {[%emt 0:10:13]} Nxe5 {[%emt 0:01:42]} 10. Bxe5 {[%emt 0:00:54]} e6 {[%emt 0:02:54]} 11. Bd3 {[%emt 0:08:10]} Bxd3 {[%emt 0:01:49]} 12. Qxd3 {[%emt 0:00:09]} Ng4 {[%emt 0:02:01]} 13. Bf4 {[%emt 0:06:16]} Be7 {[%emt 1:22:34]} 14. f3 {[%emt 0:12:03]} Nf6 {[%emt 0:12:05]} 15. Bg5 {[%emt 0:48:32]} Qd6 {[%emt 1:05:21]} 16. Ne2 {[%emt 0:04:34]} O-O-O {[%emt 0:03:14]} 17. O-O-O {[%emt 0:01:46]} Rhe8 {[%emt 0:03:30]} 18. Bf4 {[%emt 0:02:16]} Qd5 {[%emt 0:01:46]} 19. Nc3 {[%emt 0:36:43]} Qa5 {[%emt 0:00:50]} 20. Kb1 {[%emt 0:02:04]} *